[Event "German Bundesliga 2023-24"]
[Site "Germany"]
[Date "2024.02.24"]
[Round "10.15"]
[White "Gerigk, Erasmus"]
[Black "Reuker, Jari"]
[Result "1/2-1/2"]
[ECO "B22"]
[WhiteElo "2310"]
[BlackElo "2403"]
[Annotator "TA"]
[PlyCount "41"]
[EventDate "2023.10.20"]
[EventType "team-tourn"]
[EventCountry "GER"]
[SourceTitle "playchess.com"]
[Source "ChessBase"]
[SourceQuality "1"]
[TimeControl "40/6000+30:3000+30"]

{[%evp 13,41,0,19,10,10,5,22,20,21,11,29,16,16,-20,-24,-37,13,18,44,28,44,29,39,20,27,34,105,101,132,111]} 1. e4 {[%emt 0:00:02]} c5 {[%emt 0:00:07]} 2. c3 {[%emt 0:00:08]} Nf6 {[%emt 0:00:07]} 3. e5 {[%emt 0:00:02]} Nd5 {[%emt 0:00:06]} 4. Nf3 {[%emt 0:00:07]} e6 {[%emt 0:00:21]} 5. d4 {[%emt 0:00:13]} cxd4 {[%emt 0:00:05]} 6. cxd4 {[%emt 0:00:07]} d6 {[%emt 0:00:05]} 7. Bc4 {[%emt 0:00:18]} Be7 {[%emt 0:00:11]} 8. O-O {[%emt 0:00:10]} O-O {[%emt 0:00:12]} 9. Qe2 {[%emt 0:00:21]} a6 {[%emt 0:00:16]} 10. Qe4 {[%emt 0:04:57] The position is equal.} Nd7 {[%emt 0:00:47]} 11. Rd1 {[%emt 0:22:28]} b5 {[%emt 0:04:34]} 12. Bxd5 {[%emt 0:02:03]} exd5 {[%emt 0:00:05]} 13. Qf4 {[%emt 0:01:12]} dxe5 {[%emt 0:00:21]} 14. dxe5 {[%emt 0:01:29][%cal Ob1c3]} Nc5 {[%emt 0:32:02]} (14... f6 $1 $15 15. Qg3 Nxe5) 15. Nc3 $11 {[%emt 0:07:07][%cal Bb1c3,Bc3e2,Be2f4][%mdl 32]} Be6 {[%emt 0:07:24]} 16. Be3 {[%emt 0:02:59]} Rc8 {[%emt 0:02:02][%cal Ob5b4]} 17. Qd4 $36 {[%emt 0:12:35][%cal Rc3d5][%mdl 2048] White is pushing.} Rc7 {[%emt 0:24:40]} 18. Rac1 {[%emt 0:04:46][%cal Oh2h3]} (18. Nxd5 $2 {too greedy.} Bxd5 19. Qxd5 Rd7 $19) 18... b4 {[%emt 0:13:39]} 19. Ne2 {[%emt 0:06:42][%cal Oe2f4]} (19. Nxd5 Bxd5 20. Qxd5 Rd7 21. Rxc5 Rxd5 22. Rcxd5 Qa8 $15) ({Much weaker is} 19. Qxb4 Nd3 20. Qa5 Nxc1 $15) 19... Ne4 {[%emt 0:02:19]} ({Better is} 19... Qb8 $14) 20. Nf4 $16 {[%emt 0:03:46] [#] And now Nxe6 would win.} Rxc1 {[%emt 0:01:22]} 21. Rxc1 {[%emt 0:04:03] Weighted Error Value: White=0.09 (flawless) /Black=0.19 (very precise) .  Mistake:       	---       	Black=2      Inaccurate:     	White=1     	Black=2      OK:         	White=6     	Black=2} 1/2-1/2

[Event "German Bundesliga 2023-24"]
[Site "Germany"]
[Date "2024.02.24"]
[Round "10.16"]
[White "Gerigk, Erasmus"]
[Black "Reuker, Jari"]
[Result "*"]
[ECO "B22"]
[WhiteElo "2310"]
[BlackElo "2403"]
[Annotator "ChessBase"]
[PlyCount "27"]
[EventDate "2023.10.20"]
[EventType "team-tourn"]
[EventCountry "GER"]
[SourceTitle "playchess.com"]
[Source "ChessBase"]
[SourceQuality "1"]
[TimeControl "40/6000+30:3000+30"]

1. e4 {[%emt 0:00:02]} c5 {[%emt 0:00:07]} 2. c3 {[%emt 0:00:08]} Nf6 {[%emt 0:00:07]} 3. e5 {[%emt 0:00:02]} Nd5 {[%emt 0:00:06]} 4. Nf3 {[%emt 0:00:07]} e6 {[%emt 0:00:21]} 5. d4 {[%emt 0:00:13]} cxd4 {[%emt 0:00:05]} 6. cxd4 {[%emt 0:00:07]} d6 {[%emt 0:00:05]} 7. Bc4 {[%emt 0:00:18]} Be7 {[%emt 0:00:11]} 8. O-O {[%emt 0:00:10]} O-O {[%emt 0:00:12]} 9. Qe2 {[%emt 0:00:21]} a6 {[%emt 0:00:16]} 10. Qe4 {[%emt 0:04:57]} Nd7 {[%emt 0:00:47]} 11. Rd1 {[%emt 0:22:28]} b5 {[%emt 0:04:34]} 12. Bxd5 {[%emt 0:02:03]} exd5 {[%emt 0:00:05]} 13. Qf4 {[%emt 0:01:12]} dxe5 {[%emt 0:00:21]} 14. dxe5 {[%emt 0:01:29]} *

[Event "German Bundesliga 2023-24"]
[Site "Germany"]
[Date "2024.02.24"]
[Round "10.17"]
[White "Kruckenhauser, Arthur"]
[Black "Aditya Mittal"]
[Result "0-1"]
[ECO "B23"]
[WhiteElo "2313"]
[BlackElo "2588"]
[Annotator "TA"]
[PlyCount "70"]
[EventDate "2023.10.20"]
[EventType "team-tourn"]
[EventCountry "GER"]
[SourceTitle "playchess.com"]
[Source "ChessBase"]
[SourceQuality "1"]
[TimeControl "40/6000+30:3000+30"]

{[%evp 9,70,11,22,0,6,10,1,-5,0,-10,0,2,0,0,12,19,18,8,14,2,17,17,3,0,0,0,0,0,0,-11,-16,-32,-22,-18,4,-42,0,0,0,0,0,-39,0,0,18,20,0,52,42,0,0,-71,-71,-71,-60,-67,-25,-81,-85,-3006,-1897,-29984,-29983]} 1. e4 {[%emt 0:00:03]} c5 {[%emt 0:00:01]} 2. Nc3 {[%emt 0:00:30]} d6 {[%emt 0:00:17]} 3. Bb5+ {[%emt 0:00:39]} Bd7 {[%emt 0:00:39]} 4. Bxd7+ {[%emt 0:00:20]} Nxd7 {[%emt 0:02:44]} 5. Qe2 {[%emt 0:06:00]} a6 {[%emt 0:05:48]} 6. b3 {[%emt 0:03:45]} g6 {[%emt 0:02:57]} 7. Bb2 {[%emt 0:02:02]} Bg7 {[%emt 0:00:02]} 8. f4 {[%emt 0:06:57] The position is equal.} e6 {[%emt 0:01:11]} 9. Nf3 {[%emt 0:06:58]} Ne7 {[%emt 0:00:58]} 10. O-O {[%emt 0:11:43]} O-O {[%emt 0:07:35]} 11. Nd1 {[%emt 0:05:58]} d5 {[%emt 0:07:55]} 12. Bxg7 {[%emt 0:05:12]} Kxg7 {[%emt 0:00:02]} 13. d3 {[%emt 0:00:48]} Qc7 {[%emt 0:06:59]} 14. g3 {[%emt 0:01:56]} Rae8 {[%emt 0:03:59]} 15. c4 {[%emt 0:09:19]} d4 {[%emt 0:12:25]} 16. Nf2 {[%emt 0:03:58]} f6 {[%emt 0:03:29]} 17. Qd2 {[%emt 0:07:09]} Nc6 {[%emt 0:02:53]} 18. Kg2 {[%emt 0:03:52]} b5 {[%emt 0:04:01]} 19. h4 {[%emt 0:03:36][%cal Oh4h5]} h5 {[%emt 0:03:37]} 20. Rfe1 {[%emt 0:06:32]} b4 {[%emt 0:06:56]} 21. Re2 {[%emt 0:04:38]} a5 {[%emt 0:04:20][%cal Oa5a4]} 22. Rae1 {[%emt 0:01:29]} (22. Rg1 $11) 22... Qb7 {[%emt 0:03:36][%cal Oa5a4]} (22... e5 {feels hotter.} 23. f5 Rh8 24. fxg6 Ne7) 23. g4 {[%emt 0:02:36]} hxg4 {[%emt 0:04:25]} 24. Nxg4 {[%emt 0:00:07]} Rh8 {[%emt 0:00:10]} 25. Kg3 {[%emt 0:02:42]} Rh5 {[%emt 0:03:41]} 26. e5 {[%emt 0:02:14] [#] Threatens to win with Nxf6.} fxe5 {[%emt 0:02:41]} 27. fxe5 {[%emt 0:00:52]} ({Don't play} 27. Ng5 Ne7 28. Kf2 (28. Nxe5 $2 Nf5+ 29. Kf2 Nxe5 $19) (28. Nxe6+ $2 Kg8 $19) 28... Nf5 $15 (28... Rxh4 29. Nxe6+ Kg8 30. Rg1 $17)) 27... Qb8 {[%emt 0:11:09]} 28. Ng5 {[%emt 0:01:48] Qf4 is the strong threat.} Ne7 {[%emt 0:00:24]} 29. Nxe6+ {[%emt 0:02:06]} Kg8 {[%emt 0:00:04] Hoping for ...Nf5+. Dancing on a razor blade.} 30. Nf4 {[%emt 0:04:08]} (30. Kf2 $11) 30... Nf5+ $17 {[%emt 0:00:06]} 31. Kf2 {[%emt 0:00:25]} Rxh4 {[%emt 0:00:56]} 32. Rg1 {[%emt 0:00:15]} Nxe5 {[%emt 0:02:44]} (32... Ne3 $5 33. Rxe3 dxe3+ 34. Qxe3 Rxg4 35. Rxg4 Nxe5 $17) 33. Nxe5 {[%emt 0:04:37]} (33. Rxe5 $11 Rxe5 34. Nxg6) 33... Rxe5 {[%emt 0:01:19]} 34. Rxg6+ $2 {[%emt 0:01:36][%mdl 8192]} (34. Rxe5 $17 Rh2+ (34... Qxe5 35. Nxg6 Rh2+ 36. Kf3 $16) 35. Rg2 Rxg2+ (35... Qxe5 36. Rxh2 Ne3 37. Rh1 $16) 36. Nxg2 Qxe5 37. Qg5) 34... Kf7 $19 {[%emt 0:01:12][%cal Oh4f4] ( -> ...Rxf4+!)} 35. Rg2 {[%emt 0:00:39] [#]} Rxf4+ $1 {[%emt 0:00:23][%mdl 512] Weighted Error Value: White=0.58/Black=0.07 (flawless) .  Loses game:     	White=1     	---        Mistake:       	White=3     	---        Inaccurate:     	White=3     	Black=4      OK:         	White=10    	Black=14     Best:        	White=1     	Black=3} 0-1

[Event "German Bundesliga 2023-24"]
[Site "Germany"]
[Date "2024.02.24"]
[Round "10.18"]
[White "Iturrizaga Bonelli, Eduardo"]
[Black "Kollars, Dmitrij"]
[Result "1/2-1/2"]
[ECO "A17"]
[WhiteElo "2600"]
[BlackElo "2633"]
[Annotator "TA"]
[PlyCount "57"]
[EventDate "2023.10.20"]
[EventType "team-tourn"]
[EventCountry "GER"]
[SourceTitle "playchess.com"]
[Source "ChessBase"]
[SourceQuality "1"]
[TimeControl "40/6000+30:3000+30"]

{[%evp 9,57,0,0,7,18,0,0,0,11,2,16,7,0,0,0,14,4,0,0,0,31,0,10,-34,-50,-43,-50,-35,0,-8,-16,0,39,35,26,29,76,64,58,76,62,66,61,71,64,66,62,62,60,68]} 1. Nf3 {[%emt 0:00:07]} d5 {[%emt 0:00:14]} 2. e3 {[%emt 0:00:07]} Nf6 {[%emt 0:00:24]} 3. c4 {[%emt 0:00:07]} e6 {[%emt 0:00:13][%cal Be7e6,Be6e5,Be5e4][%mdl 32]} 4. Nc3 {[%emt 0:00:06]} b6 {[%emt 0:01:04]} 5. b3 {[%emt 0:00:37]} Bb7 {[%emt 0:03:00]} 6. Bb2 {[%emt 0:00:34]} Nbd7 {[%emt 0:00:34][%cal Bb8d7,Bd7c5,Bc5d3][%mdl 32]} 7. g3 {[%emt 0:00:13]} dxc4 {[%emt 0:03:09]} 8. bxc4 {[%emt 0:01:07] The position is equal.} e5 {[%emt 0:00:07]} 9. Bg2 {[%emt 0:01:20]} e4 $1 {[%emt 0:00:16]} 10. Ng5 {[%emt 0:06:59]} Nc5 {[%emt 0:01:17] [#] Strongly threatening ...Nd3+.} 11. O-O {[%emt 0:00:11]} h6 {[%emt 0:00:25]} 12. Nh3 {[%emt 0:00:09]} Bd6 {[%emt 0:00:11]} 13. f4 {[%emt 0:17:09]} Qe7 {[%emt 0:25:34]} 14. Nb5 {[%emt 0:16:29]} Nd3 {[%emt 0:02:35] Prevents Nf2.} 15. Bc3 {[%emt 0:00:52]} O-O {[%emt 0:13:44]} 16. g4 {[%emt 0:02:03]} Bb4 {[%emt 0:03:13]} 17. Bxf6 {[%emt 0:10:54]} Qxf6 {[%emt 0:05:05]} ({But not} 17... gxf6 $6 18. Nd4 $14) 18. Nxc7 {[%emt 0:00:07]} Rad8 {[%emt 0:01:19]} 19. Nd5 $1 {[%emt 0:00:16]} Bxd5 {[%emt 0:07:53]} 20. cxd5 {[%emt 0:00:26]} Qh4 {[%emt 0:00:59]} 21. Nf2 {[%emt 0:02:12]} ({Much weaker is} 21. Bxe4 Qxh3 22. Bg2 (22. Bxd3 Rxd5 23. Rb1 Rxd3 $17) 22... Qh4 $17) 21... Nxf2 {[%emt 0:04:25]} 22. Rxf2 {[%emt 0:00:09]} Rxd5 {[%emt 0:00:09]} (22... Rfe8 $11) 23. Bxe4 $16 {[%emt 0:06:33]} Qxf2+ {[%emt 0:02:30]} 24. Kxf2 {[%emt 0:00:31]} Rxd2+ {[%emt 0:00:04] [#]} 25. Qxd2 $1 {[%emt 0:05:13]} Bxd2 $14 {[%emt 0:00:06] KRB-KRB} 26. Rd1 {[%emt 0:00:04]} Bb4 {[%emt 0:00:54]} 27. Rd7 {[%emt 0:00:42][%cal Oe4d5] White is slightly better.} Re8 {[%emt 0:00:24]} 28. Kf3 {[%emt 0:03:16] White is more active.} a5 {[%emt 0:02:32]} 29. Bd5 {[%emt 0:05:24] Weighted Error Value: White=0.07 (flawless) /Black=0.08 (flawless) .  Mistake:       	---       	Black=1      Inaccurate:     	White=1     	Black=3      OK:         	White=7     	Black=12     Best:        	White=4     	Black=1      Strong:       	White=1     	Black=1} 1/2-1/2

[Event "German Bundesliga 2023-24"]
[Site "Germany"]
[Date "2024.02.24"]
[Round "10.19"]
[White "Kamsky, Gata"]
[Black "Oleksiyenko, Mykhaylo"]
[Result "1/2-1/2"]
[ECO "B40"]
[WhiteElo "2634"]
[BlackElo "2567"]
[Annotator "TA"]
[PlyCount "58"]
[EventDate "2023.10.20"]
[EventType "team-tourn"]
[EventCountry "GER"]
[SourceTitle "playchess.com"]
[Source "ChessBase"]
[SourceQuality "1"]
[TimeControl "40/6000+30:3000+30"]

{[%evp 16,58,20,27,36,28,65,39,34,42,69,39,51,20,42,20,33,14,19,0,0,0,0,0,30,33,20,9,43,25,50,0,0,0,0,0,0,0,0,0,0,0,0,0,0]} 1. e4 {[%emt 0:00:11]} c5 {[%emt 0:00:35]} 2. Nf3 {[%emt 0:00:07]} e6 {[%emt 0:00:28]} 3. d4 {[%emt 0:00:39]} cxd4 {[%emt 0:00:04]} 4. Nxd4 {[%emt 0:00:04]} Nf6 {[%emt 0:01:29]} 5. Nc3 {[%emt 0:00:08]} Bb4 {[%emt 0:00:02]} 6. e5 {[%emt 0:10:49]} Nd5 {[%emt 0:00:04]} 7. Bd2 {[%emt 0:12:43]} Nxc3 {[%emt 0:02:20]} 8. bxc3 {[%emt 0:02:00]} Be7 {[%emt 0:00:02]} 9. Qg4 {[%emt 0:00:50]} Kf8 {[%emt 0:00:41]} 10. Bd3 {[%emt 0:01:47]} Na6 {[%emt 0:01:15]} 11. O-O {[%emt 0:01:16] Threatens to win with f4. White is much more active.} Nc5 {[%emt 0:05:18] White is slightly better.} 12. f4 {[%emt 0:02:12] f5 would now be deadly.} h5 {[%emt 0:15:58]} 13. Qe2 {[%emt 0:17:00]} g6 {[%emt 0:11:24]} 14. Be3 {[%emt 0:14:35]} b6 {[%emt 0:07:03]} 15. a4 {[%emt 0:02:16]} (15. f5 {looks sharper.} Nxd3 16. fxe6 dxe6 17. Nc6) 15... Bb7 {[%emt 0:01:53]} 16. Nb5 {[%emt 0:01:27]} Bc6 {[%emt 0:04:07]} 17. Bd4 {[%emt 0:00:41]} h4 {[%emt 0:03:40]} 18. h3 {[%emt 0:00:08]} Rh5 {[%emt 0:04:40]} 19. c4 {[%emt 0:04:45]} a6 {[%emt 0:03:57]} 20. Nd6 {[%emt 0:00:16]} Bxd6 {[%emt 0:25:16]} 21. exd6 {[%emt 0:00:14][%cal Of4f5]} Nxd3 {[%emt 0:00:06]} 22. cxd3 {[%emt 0:00:20]} f6 {[%emt 0:00:49] [#]} 23. f5 {[%emt 0:04:08]} Rxf5 $11 {[%emt 0:03:27] The position is equal.} 24. Rxf5 {[%emt 0:00:37]} (24. Qg4 $5 Kf7 $8 25. Rxf5 (25. Qxh4 Qh8 $15) 25... gxf5 (25... exf5 26. Qxh4 Qh8 27. Qxh8 $11) 26. Qh5+ (26. Qxh4 Qh8 $15) 26... Kg7 27. Qg5+ (27. Qxh4 e5 $15) 27... Kf7 28. Qh5+ (28. Qxh4 Qh8 $15) 28... Kg7 29. Qg5+ (29. Qxh4 e5 $15) 29... Kf7 30. Qh5+ $11 (30. Qxh4 Qh8 $15)) 24... gxf5 {[%emt 0:00:32]} 25. Qh5 {[%emt 0:00:15]} Kg7 {[%emt 0:00:13] Repels Qh8+} 26. Qg5+ {[%emt 0:02:05]} Kf7 {[%emt 0:00:03]} 27. Qh5+ {[%emt 0:00:04]} (27. Qxh4 Qh8 28. Qxh8 Rxh8 $16) 27... Kg7 {[%emt 0:00:02]} 28. Qg5+ {[%emt 0:00:06]} Kf7 {[%emt 0:00:02]} 29. Qh5+ {[%emt 0:00:05]} (29. Qxh4 Qh8 30. Qxh8 Rxh8 $16) 29... Kg7 {[%emt 0:00:02] Weighted Error Value: White=0.09 (flawless) /Black=0.12 (very precise) .  Mistake:       	White=1     	---        Inaccurate:     	White=3     	Black=4      OK:         	White=9     	Black=6      Best:        	---       	Black=5} 1/2-1/2

[Event "German Bundesliga 2023-24"]
[Site "Germany"]
[Date "2024.02.24"]
[Round "10.20"]
[White "Laurent-Paoli, Pierre"]
[Black "Gustafsson, Jan"]
[Result "1-0"]
[ECO "D50"]
[WhiteElo "2540"]
[BlackElo "2620"]
[Annotator "TA"]
[PlyCount "95"]
[EventDate "2023.10.20"]
[EventType "team-tourn"]
[EventCountry "GER"]
[SourceTitle "playchess.com"]
[Source "ChessBase"]
[SourceQuality "1"]
[TimeControl "40/6000+30:3000+30"]

{[%evp 22,95,30,18,14,8,11,10,31,42,19,30,45,52,51,47,50,58,55,52,59,61,65,39,37,32,38,52,39,19,23,31,47,42,32,39,67,0,0,0,0,0,0,0,0,0,0,0,28,28,28,43,102,102,102,102,159,147,171,172,196,194,192,187,208,208,257,238,936,289,881,343,935,892,29993,29994]} 1. d4 {[%emt 0:00:19]} Nf6 {[%emt 0:00:14]} 2. c4 {[%emt 0:00:43]} e6 {[%emt 0:00:11]} 3. Nc3 {[%emt 0:00:46]} d5 {[%emt 0:00:32]} 4. Bg5 {[%emt 0:07:03]} dxc4 {[%emt 0:15:43]} 5. e3 {[%emt 0:01:25]} c5 {[%emt 0:01:32]} 6. Bxc4 {[%emt 0:03:35] D50: Queen's Gambit Declined: Dutch-Peruvian Gambit.} cxd4 {[%emt 0:07:26]} 7. exd4 {[%emt 0:01:38]} Be7 {[%emt 0:01:12]} 8. Nf3 {[%emt 0:00:28]} h6 {[%emt 0:00:48]} 9. Bf4 {[%emt 0:05:39]} Nc6 {[%emt 0:05:02]} 10. O-O {[%emt 0:00:39]} O-O {[%emt 0:00:42]} 11. Re1 {[%emt 0:05:01]} Nd5 {[%emt 0:12:43]} 12. Bxd5 {[%emt 0:19:09]} exd5 {[%emt 0:00:10]} 13. Qb3 {[%emt 0:00:05]} Bb4 $146 {[%emt 0:06:02]} ({Predecessor:} 13... Bd6 14. Bxd6 Qxd6 15. Qxd5 Qb4 16. Qb5 Rd8 17. Rad1 Bg4 18. d5 Qxb5 19. Nxb5 Nb4 {1-0 Do Amaral,G (1952)-Volkmann,A (2112) Florianopolis Winter op 6th 2022 (6)}) 14. Ne5 {[%emt 0:13:20]} a5 {[%emt 0:09:11]} 15. Nxc6 {[%emt 0:01:19]} bxc6 {[%emt 0:01:44]} 16. a3 {[%emt 0:00:26]} Bxc3 {[%emt 0:16:04]} 17. Qxc3 {[%emt 0:00:06]} Bd7 {[%emt 0:00:13]} 18. a4 {[%emt 0:08:47]} Qb6 {[%emt 0:04:42]} 19. Re7 {[%emt 0:04:13]} Bf5 {[%emt 0:01:19]} 20. Bc7 {[%emt 0:07:22]} Qa6 {[%emt 0:02:01]} 21. Rc1 {[%emt 0:01:03]} Rfc8 {[%emt 0:04:55]} 22. Be5 {[%emt 0:04:21]} (22. Qxc6 Qxc6 23. Rxc6 Rab8 $11) 22... Ra7 {[%emt 0:05:25]} 23. Qg3 {[%emt 0:03:30]} Bg6 {[%emt 0:00:05]} 24. Rxa7 {[%emt 0:00:08]} Qxa7 {[%emt 0:00:02]} 25. h4 {[%emt 0:00:47]} h5 $1 {[%emt 0:00:05]} 26. Rc5 {[%emt 0:00:20]} Qe7 {[%emt 0:07:24]} 27. Qh3 {[%emt 0:03:33]} Re8 {[%emt 0:04:18]} 28. Rxc6 {[%emt 0:01:32]} (28. Rxa5 $2 f6 29. Qg3 Kh7 $19) 28... f6 {[%emt 0:02:19]} 29. Qb3 {[%emt 0:05:18]} (29. Rc7 $14 Qe6 30. Qxe6+ Rxe6 31. Bg3) 29... Kh7 {[%emt 0:00:51]} 30. Rc7 {[%emt 0:01:08]} Qe6 {[%emt 0:00:08]} 31. Bg3 {[%emt 0:00:18]} Qg4 {[%emt 0:01:52]} 32. Kh2 {[%emt 0:08:07]} (32. Qxd5 $2 Re1+ 33. Kh2 Qd1 $19) 32... Qxd4 {[%emt 0:00:09]} 33. Rd7 {[%emt 0:00:37]} Re2 {[%emt 0:01:10]} 34. Qb7 {[%emt 0:02:15]} f5 {[%emt 0:00:29]} (34... Rxf2 $5 35. Rxg7+ (35. Bxf2 Qxf2 36. Qxd5 Qxh4+ 37. Kg1 Qe1+ 38. Kh2 Qh4+ 39. Kg1 Qe1+ 40. Kh2 Qh4+ $11) 35... Kh6 $14) 35. Qxd5 {[%emt 0:01:11]} Qxd5 {[%emt 0:00:24]} 36. Rxd5 {[%emt 0:00:03]} Re4 {[%emt 0:00:15] [#]} (36... f4 $14) 37. f3 $1 $16 {[%emt 0:00:25]} (37. Rxa5 f4 38. b3 fxg3+ 39. Kxg3 Rg4+ 40. Kh3 Bf7 $15) 37... Rxa4 {[%emt 0:00:02]} 38. Be1 {[%emt 0:00:42]} Ra2 {[%emt 0:00:55]} ({Black should try} 38... Kg8 39. Rb5 (39. Rxa5 Rxa5 40. Bxa5 Be8 $14) 39... Kf7) 39. Bc3 $16 {[%emt 0:00:16]} (39. Rxa5 Rxb2 40. Rc5 Re2 $11) 39... a4 {[%emt 0:01:06]} 40. Rd7 {[%emt 0:01:00]} Be8 {[%emt 0:00:23]} 41. Rxg7+ {[%emt 0:51:04]} Kh6 {[%emt 0:01:56]} 42. Ra7 {[%emt 0:00:00]} Ra1 {[%emt 0:14:42]} 43. Kg3 {[%emt 0:00:00]} Rd1 {[%emt 0:08:16]} 44. Kf4 {[%emt 0:00:00]} Rg1 $2 {[%emt 0:01:18]} (44... Bb5 45. Rb7 (45. Kxf5 Rd7 $18) 45... Bc6) 45. Ra8 $2 {[%emt 0:00:00]} (45. Kxf5 {[%cal Rc3d2]} Rd1 46. Be5 Bd7+ 47. Kf6) 45... Bg6 $2 {[%emt 0:02:10]} (45... Bd7 46. Rh8+ Kg6) 46. g3 $2 {[%emt 0:00:00]} (46. Ke5 Rd1 47. Rxa4) 46... Ra1 $2 {[%emt 0:01:25]} (46... Rd1 47. Rxa4 Rd7) 47. Ra7 {[%emt 0:00:00]} Ra2 {[%emt 0:00:13]} 48. Ke5 {[%emt 0:00:00]} 1-0

[Event "German Bundesliga 2023-24"]
[Site "Germany"]
[Date "2024.02.24"]
[Round "10.21"]
[White "Zilka, Stepan"]
[Black "Grigoriants, Sergey"]
[Result "1/2-1/2"]
[ECO "C78"]
[WhiteElo "2599"]
[BlackElo "2543"]
[Annotator "TA"]
[PlyCount "49"]
[EventDate "2023.10.20"]
[EventType "team-tourn"]
[EventCountry "GER"]
[SourceTitle "playchess.com"]
[Source "ChessBase"]
[SourceQuality "1"]
[TimeControl "40/6000+30:3000+30"]

{[%evp 17,49,47,52,0,33,0,-1,2,16,1,37,42,44,27,6,12,29,0,0,0,0,0,6,0,0,0,-7,-6,-10,-16,-12,-39,-16,-8]} 1. e4 {[%emt 0:00:05]} e5 {[%emt 0:00:29]} 2. Nf3 {[%emt 0:00:06]} Nc6 {[%emt 0:00:08]} 3. Bb5 {[%emt 0:00:04][%cal Bf1b5,Bb5a4,Ba4b3][%mdl 32]} a6 {[%emt 0:00:54]} 4. Ba4 {[%emt 0:00:04]} Nf6 {[%emt 0:01:12]} 5. O-O {[%emt 0:00:08]} b5 {[%emt 0:02:54]} 6. Bb3 {[%emt 0:00:07]} Bc5 {[%emt 0:00:04][%cal Bf8c5,Bc5b6,Bb6a7][%mdl 32]} 7. c3 {[%emt 0:00:59]} d6 {[%emt 0:00:16]} 8. a4 {[%emt 0:00:30][%cal Ba2a4,Ba4a5][%mdl 32]} Rb8 {[%emt 0:02:10]} 9. d4 {[%emt 0:00:19]} Bb6 $1 {[%emt 0:00:07]} 10. a5 {[%emt 0:00:22]} Ba7 {[%emt 0:00:08]} 11. Be3 {[%emt 0:00:12]} Bg4 {[%emt 0:06:12]} 12. Nbd2 {[%emt 0:05:35] next dxe5 is good for White.} O-O {[%emt 0:27:25]} 13. Qe1 {[%emt 0:03:10]} Re8 {[%emt 0:11:11]} 14. dxe5 {[%emt 0:07:49]} dxe5 {[%emt 0:01:14]} 15. Bxa7 {[%emt 0:03:35]} Nxa7 {[%emt 0:00:26][%cal Bc6a7,Ba7c8,Bc8d6,Bd6b7][%mdl 32]} 16. Qe3 {[%emt 0:00:08]} Nc8 {[%emt 0:10:49]} 17. h3 {[%emt 0:06:44]} Bxf3 {[%emt 0:01:49]} 18. Nxf3 {[%emt 0:00:06]} Nd6 {[%emt 0:00:07]} 19. Rfd1 {[%emt 0:02:00]} Qe7 {[%emt 0:03:36]} 20. Ng5 {[%emt 0:18:58][%cal Od1d6]} Rf8 {[%emt 0:09:52]} (20... h6 21. Rxd6 cxd6 22. Bxf7+ Kh8 23. Bxe8 Qxe8 24. Nf3) 21. Qc5 {[%emt 0:00:02]} h6 {[%emt 0:01:18]} 22. Nf3 {[%emt 0:17:47]} Rfe8 {[%emt 0:01:22]} 23. Re1 {[%emt 0:03:50]} Nb7 {[%emt 0:08:38]} ({Much worse is} 23... Nfxe4 24. Qc6 $16) 24. Qe3 {[%emt 0:07:18]} Qc5 {[%emt 0:02:05]} 25. Ba2 {[%emt 0:08:24] Weighted Error Value: White=0.14 (very precise) /Black=0.07 (flawless) .  Inaccurate:     	White=3     	Black=1      OK:         	White=6     	Black=8} 1/2-1/2